Cogmind - Beta 17.1 @@@ ROGUE MODE // 2026.08.23 @ 23:20:27 Player: Alicianrone Result: Destroyed self with Rocket Launcher Performance ------------- Evolutions (0) 0 Regions Visited (3) 600 Robots Destroyed (27) 135 Value Destroyed (537) 537 Prototype IDs (25) 500 Alien Tech Used (0) 0 Bonus (300) 300 TOTAL SCORE: 2072 Bonus ------- Aligned with FarCom 300 Cogmind --------- Core Integrity 0/250 Matter 93/300 Energy 115/125 System Corruption 0% Temperature Warm (110) Movement Treading (320) Ox2 Location -10/Exiles Parts ------- > --- POWER (1) -------- Light Ion Engine > --- PROPULSION (2) --- Light Treads Light Treads > --- UTILITY (2) ------ Huge Storage Unit > --- WEAPON (2) ------- Improved EM Shotgun Rocket Launcher > --- INVENTORY (25) --- Light Treads Light Treads Light Treads Light Treads Armored Wheel Armored Wheel Armored Wheel Armored Wheel Seismic Detector Trap Reconfigurator Latent Energy Streamer Field Lobotomy Kit (5) Peak State ------------ > --- POWER ------------ Ion Engine > --- PROPULSION ------- Armored Wheel Armored Wheel > --- UTILITY ---------- Huge Storage Unit Seismic Detector > --- WEAPON ----------- Improved Assault Rifle Improved Assault Rifle > --- INVENTORY -------- Light Ion Engine Nuclear Core Fission Core Fission Core Light Treads Light Treads Light Treads Light Treads Light Treads Light Treads Light Treads Light Treads Light Treads Light Treads Armored Wheel Armored Wheel Backup Plating I Backup Plating I Backup Plating I Improved EM Shotgun Improved EM Shotgun Latent Energy Streamer Improved Assault Rifle Rocket Launcher Field Lobotomy Kit [Rating: 19] Favorites ----------- Power Ion Engine Engine Ion Engine Propulsion Compact Wheel Treads Light Treads Wheel Compact Wheel Utility Huge Storage Unit Device Seismic Detector Storage Huge Storage Unit Protection Backup Plating I Weapon Improved Assault Rifle Energy Gun Improved EM Shotgun Ballistic Gun Improved Assault Rifle Launcher Rocket Launcher Build | -11 -10 -10 -10 ------- Run | Yrd Mat Min Exi Slots Evolved . | . . . . Power . | . . . . Propulsion . | . . . . Utility . | . . . . Weapon . | . . . . Parts Attached 30 | 7 12 1 10 Power 2 | 1 1 . . Engine 2 | 1 1 . . Core . | . . . . Reactor . | . . . . Propulsion 10 | 2 5 . 3 Treads 5 | . 2 . 3 Leg . | . . . . Wheel 5 | 2 3 . . Hover . | . . . . Flight . | . . . . Utility 7 | 2 1 1 3 Device 2 | 1 . . 1 Storage 2 | 1 1 . . Processor . | . . . . Hackware . | . . . . Protection 3 | . . 1 2 Artifact . | . . . . Weapon 11 | 2 5 . 4 Energy Gun 4 | 1 1 . 2 Energy Cannon . | . . . . Ballistic Gun 5 | 1 2 . 2 Ballistic Cannon . | . . . . Launcher 2 | . 2 . . Special Weapon . | . . . . Impact Weapon . | . . . . Slashing Weapon . | . . . . Piercing Weapon . | . . . . Special Melee Weapon . | . . . . Unidentified Prototypes 2 | . 2 . . Parts Lost 12 | . 2 . 10 Power 1 | . . . 1 Propulsion 3 | . 1 . 2 Utility 3 | . . . 3 Weapon 5 | . 1 . 4 Highest Loss Streak 4 | . 1 . 4 To Critical Strikes 5 | . . . 5 Average Backups 17 | 2 14 25 21 Power 1 | . . 1 2 Propulsion 6 | 1 3 12 10 Utility 3 | . 3 5 3 Weapon 6 | 1 6 7 4 Tool/Special . | . . . . Unused Backups 18 | . 2 . 16 Power 3 | . . . 3 Propulsion 7 | . . . 7 Utility 2 | . . . 2 Weapon 5 | . 2 . 3 Tool/Special 1 | . . . 1 Average Slot Usage (%) 99 | . 99 100 98 Engine 14 | . 14 14 14 Treads 3 | . 2 . 9 Wheel 24 | . 25 28 18 Device 12 | . 14 13 9 Storage 14 | . 14 14 14 Ballistic Gun 26 | . 27 28 24 Peak Build Rating 19 | 7 16 16 19 Average Rating 13 | 4 12 15 16 On Entrance 9 | . 7 16 16 Avg Prop Armor Cover (%) 12 | . 12 . . Naked Turns . | . . . . Heaviest Build 92 | 12 92 92 92 Greatest Support 40 | 32 40 24 24 Greatest Overweight (x) 7 | . 7 3 3 Average Overweight (x) 2 | . 2 3 3 Largest Inventory Capacity 25 | 8 25 25 25 Average Capacity 24 | 7 24 25 25 Most Carried 25 | 5 25 25 25 Average Carried 17 | 2 14 25 21 Final Capacity 25 | 8 25 25 25 Final Carried 25 | 5 25 25 12 Class Distribution -------------------- 100% | Mutant Dominant Class ---------------- Mutant | -10/Materials Mutant | -10/Mines Mutant | -10/Exiles Resources | -11 -10 -10 -10 ----------- Run | Yrd Mat Min Exi Matter Collected 1253 | 274 603 23 353 Remotely . | . . . . Salvage Created 735 | 56 614 37 28 Parts 57 | 12 39 6 . Haulers Intercepted 2 | . 2 . . Recyclers Shooed . | . . . . Parts Field Recycled . | . . . . Retrieved Matter . | . . . . Parts Self-Destructed . | . . . . Prevented . | . . . . Parts Restored . | . . . . Kills | -11 -10 -10 -10 ------- Run | Yrd Mat Min Exi Combat Hostiles Destroyed 22 | . 13 3 6 Guns 11 | . 10 . 1 AOE 11 | . 3 3 5 Classes Destroyed 8 | 1 6 . 1 Worker 1 | . 1 . . Tunneler 5 | 3 1 1 . Hauler 2 | . 2 . . Operator 1 | . 1 . . Watcher 2 | . 2 . . Swarmer 6 | . 3 3 . Grunt 10 | . 10 . . Assembled 6 | . . . 6 Best Kill Streak 6 | 2 4 3 6 Combat Bots Only 6 | . 3 3 6 Max Kills in Single Turn 4 | 2 2 2 4 Gunslinging . | . . . . Exploded 4 | . 1 2 4 Melee . | . . . . Uniques/NPCs Destroyed . | . . . . Combat | -11 -10 -10 -10 -------- Run | Yrd Mat Min Exi Hostile Shots Fired 156 | . 42 7 107 Missed 46 | . 13 2 31 Hits 110 | . 29 5 76 Melee 2 | . . . 2 Projectile 108 | . 29 5 74 Critical Strikes 33 | . . . 33 Damage Taken 1845 | . 352 75 1418 Core 273 | . 42 . 231 Absorbed by Shields . | . . . . Core Remaining (%) 100 | 100 . . . Volleys Fired 134 | 4 50 3 77 Largest 2 | 2 2 2 2 Hottest 90 | 70 46 46 90 Shots Fired 213 | 8 94 4 107 Gun 198 | 8 88 2 100 Cannon . | . . . . Launcher 15 | . 6 2 7 Special . | . . . . Kinetic 182 | 4 88 2 88 Thermal 4 | 4 . . . Explosive 15 | . 6 2 7 Electromagnetic 12 | . . . 12 Robot Hit Streak 29 | 3 7 8 29 Robot Miss Streak 3 | 2 3 . 2 Penetration Max . | . . . . Secondary Targets . | . . . . Shots Hit Robots 153 | 4 56 3 90 Core Hits 54 | 3 27 3 21 Critical Kills . | . . . . Critical Parts Destroyed . | . . . . Critical Strikes 1 | . . . 1 Destroy 1 | . . . 1 Melee Attacks . | . . . . Impact . | . . . . Slashing . | . . . . Piercing . | . . . . Sneak Attacks . | . . . . Combat Hostiles . | . . . . Follow-up Attacks . | . . . . Damage Inflicted 2737 | 52 1046 177 1462 Guns 2061 | 52 844 35 1130 Cannons . | . . . . Explosions 676 | . 202 142 332 Melee . | . . . . Ramming . | . . . . Kinetic 2029 | 28 844 35 1122 Thermal 24 | 24 . . . Explosive 676 | . 202 142 332 Electromagnetic 8 | . . . 8 Impact . | . . . . Slashing . | . . . . Piercing . | . . . . Highest Corruption . | . . . . Average Corruption . | . . . . Corruption Purged . | . . . . Corruption Blocked . | . . . . Overload Shots . | . . . . Overflow Damage 64 | . 11 40 13 Projectiles . | . . . . Explosions 64 | . 11 40 13 Melee . | . . . . Knockbacks . | . . . . Impact . | . . . . Kinetic . | . . . . Secondary . | . . . . Self-Inflicted Damage 93 | . . 32 61 Shots 4 | . . 2 2 Rammed . | . . . . Targets Rammed . | . . . . Kicked . | . . . . Crushed . | . . . . Highest Temperature 118 | 40 4 . 118 Average Temperature 34 | 23 1 . 70 Received Heat Transfer 183 | . 183 . . Siege Activations . | . . . . Martial Activations . | . . . . Shielding Activations . | . . . . Robots Disrupted . | . . . . Combat Hostiles . | . . . . Robots Corrupted . | . . . . Combat Hostiles . | . . . . Parts Fried . | . . . . Impact Corruptions . | . . . . Robots Melted . | . . . . Combat Hostiles . | . . . . Parts Melted . | . . . . Heat Transferred 74 | 74 . . . Parts Sabotaged . | . . . . Parts Stolen . | . . . . Parts Stripped . | . . . . Power Chain Reactions . | . . . . Alert | -11 -10 -10 -10 ------- Run | Yrd Mat Min Exi Maximum Alert Level . | . . . . Low Security (%) 100 | 100 100 100 . Level 1 . | . . . . Level 2 . | . . . . Level 3 . | . . . . Level 4 . | . . . . Level 5 . | . . . . High Security . | . . . . Max Security . | . . . . Peak Influence 156 | 10 156 103 . Initial 18 | . . 18 . Average 51 | 1 66 21 . Influence Increases 630 | 15 525 90 . Destroy 0b10 Robot/C 320 | . 260 60 . Destroy 0b10 Robot/NC 55 | 15 35 5 . Destroy Leader 78 | . 68 10 . Successful Hack 33 | . 33 . . Select Force Hacks 60 | . 60 . . Disable Machine 15 | . 15 . . Destroy Structure 54 | . 39 15 . Lose Combat Pursuer 15 | . 15 . . Influence Decreases 630 | 15 478 137 . Entered New Map 29 | . . 29 . Time Decay 581 | 15 458 108 . Lost Part 20 | . 20 . . Squads Dispatched 4 | . 4 . . Investigation 3 | . 3 . . Extermination . | . . . . Reinforcement 1 | . 1 . . Assault . | . . . . Garrison . | . . . . Intercept . | . . . . Searches Triggered . | . . . . Construction Impeded . | . . . . Haulers Reinforced . | . . . . Active Scanning Responses . | . . . . Cargo Convoy Interrupts . | . . . . Stealth | -11 -10 -10 -10 --------- Run | Yrd Mat Min Exi Distress Signals 3 | . 3 . . Communications Jammed . | . . . . Distress Signals . | . . . . Times Spotted 28 | . 18 3 7 Peak Tracking Total 9 | . 3 3 9 Tactical Retreats 1 | . 1 . . Traps | -11 -10 -10 -10 ------- Run | Yrd Mat Min Exi Traps Triggered 1 | . 1 . . Indirectly . | . . . . Trap Hack Attempts . | . . . . Triggered . | . . . . Disarmed . | . . . . Reprogrammed . | . . . . Reused . | . . . . Traps Extracted . | . . . . Installed . | . . . . Triggered . | . . . . Machines | -11 -10 -10 -10 ---------- Run | Yrd Mat Min Exi Machines Disabled 7 | . 3 . 4 Max in Single Turn 2 | . 2 . 1 Machines Repaired . | . . . . Machines Dismantled . | . . . . Machines Sabotaged . | . . . . Overloaded Fab Kills . | . . . . Hacking | -11 -10 -10 -10 --------- Run | Yrd Mat Min Exi Machines Accessed 11 | . 9 . 2 Terminals 6 | . 6 . . Fabricators . | . . . . Repair Stations 1 | . 1 . . Recycling Units 2 | . 2 . . Scanalyzers . | . . . . Garrison Access . | . . . . Total Hacks 27 | . 25 . 2 Successful 20 | . 18 . 2 Failed 7 | . 7 . . Catastrophic . | . . . . Database Lockouts . | . . . . Manual 19 | . 18 . 1 Terminals 18 | . 18 . . Fabricators . | . . . . Repair Stations 4 | . 4 . . Recycling Units 3 | . 3 . . Scanalyzers . | . . . . Garrison Access . | . . . . Terminal Hacks 7 | . 5 . 2 Record 1 | . . . 1 Robot Schematic 1 | . 1 . . Terminal Index 1 | . 1 . . Locate Traps 3 | . 3 . . Proto ID Catalog 1 | . . . 1 Fabricator Hacks . | . . . . Repair Station Hacks 3 | . 3 . . Refit 3 | . 3 . . Recycling Unit Hacks . | . . . . Scanalyzer . | . . . . Garrison Access Hacks . | . . . . Unauthorized Hacks 10 | . 10 . . Terminals 8 | . 8 . . Botnet 2 | . 2 . . Operators 1 | . 1 . . Skim 5 | . 5 . . Fabricators . | . . . . Repair Stations . | . . . . Recycling Units 2 | . 2 . . Tunnel 2 | . 2 . . Scanalyzers . | . . . . Garrison Access . | . . . . Data Cores Recovered . | . . . . Used . | . . . . Hacking Detections 3 | . 3 . . Full Trace Events . | . . . . Feedback Events . | . . . . Feedback Blocked . | . . . . Robot Schematics Acquired 1 | . 1 . . Robots Built . | . . . . Authchips . | . . . . Time . | . . . . Total Robot Build Rating . | . . . . Part Schematics Acquired . | . . . . Parts Built . | . . . . Authchips . | . . . . Time . | . . . . Total Part Build Rating . | . . . . Part Studies Acquired . | . . . . Parts Repaired . | . . . . Time . | . . . . Parts Recycled . | . . . . Recycled Matter . | . . . . Retrieved Matter . | . . . . Retrieved Components . | . . . . Parts Scanalyzed . | . . . . Part Schematics Acquired . | . . . . Parts Damaged . | . . . . Bothacking | -11 -10 -10 -10 ------------ Run | Yrd Mat Min Exi Used RIF Installer . | . . . . Robots Hacked . | . . . . Non-combat . | . . . . Combat . | . . . . Robot Hacks Applied . | . . . . Relay Couplers Released . | . . . . Fabnet Peak Effective % . | . . . . Robots Rewired . | . . . . Allies Hacked . | . . . . Hacks Repelled . | . . . . Allies | -11 -10 -10 -10 -------- Run | Yrd Mat Min Exi Total Allies . | . . . . Largest Group . | . . . . Highest-Rated Group . | . . . . Highest-Rated Ally . | . . . . Total Orders . | . . . . Ally Attacks . | . . . . Total Damage . | . . . . Kills . | . . . . Allies Corrupted . | . . . . Allies Melted . | . . . . Intel | -11 -10 -10 -10 ------- Run | Yrd Mat Min Exi Active Infowar (turns) 2205 | 27 1324 508 346 Seismic 2205 | 27 1324 508 346 Robot Analysis Total . | . . . . Derelict Logs Recovered . | . . . . Drone Launches . | . . . . Drone Recoveries . | . . . . Exploration | -11 -10 -10 -10 ------------- Run | Yrd Mat Min Exi Turns Passed 2466 | 94 1325 517 530 Spaces Moved 1413 | 72 752 363 226 Core 8 | 8 . . . Treads 5 | . 5 . . Legs . | . . . . Wheels 1400 | 64 747 363 226 Hover . | . . . . Flight . | . . . . Fastest Speed 50 | 50 100 135 135 Average Speed 133 | 94 135 135 135 Slowest Speed 320 | 100 320 135 135 Overloaded Moves . | . . . . Propulsion Burnouts . | . . . . Robots Hopped . | . . . . Potential Cave-ins . | . . . . Cave-ins Triggered . | . . . . Exploration Rate (%) 58 | 4 98 76 57 Regions Visited 3 Branch Regions 2 Pre-discovered Areas 3 | . 2 . 1 Known Exits Taken . | . . . . Unknown Exits Taken 3 | 1 1 1 . Scrap Searched . | . . . . Spaces Dug . | . . . . Terrain Destroyed 90 | . 41 15 34 Melee . | . . . . Projectile . | . . . . AOE 90 | . 41 15 34 Terrain Rammed . | . . . . Walls Destroyed . | . . . . Machines Disabled . | . . . . Actions | -11 -10 -10 -10 --------- Run | Yrd Mat Min Exi Total 1776 | 87 956 385 348 Wait 120 | . 95 14 11 Move 1410 | 71 751 362 226 Hop . | . . . . Pick Up 32 | 5 19 1 7 Fast Attach 14 | 7 7 . . Attach 11 | . 1 . 10 Detach 4 | . 4 . . Swap 30 | . 20 4 6 Drop 21 | . 9 1 11 Fire 134 | 4 50 3 77 Melee . | . . . . Ram . | . . . . Kick . | . . . . Crush . | . . . . Escape Stasis . | . . . . Rewire . | . . . . Trap . | . . . . Miscellaneous . | . . . . Route ------- -11/Scrapyard -10/Materials (discovered 5 exits: *Mat x3 / [*Min] / Sub) -10/Mines (discovered 3 exits: *Mat x2 / *Exi) -10/Exiles History --------- Turn | Location | Event 3 | -11/Scrapyard | Discovered new exit (range 15) 95 | -11/Scrapyard | Entered Materials 316 | -10/Materials | Build established: Mutant 502 | -10/Materials | Discovered new exit (range 11) 677 | -10/Materials | Discovered new exit (range 15) 972 | -10/Materials | Discovered new exit (range 5) 1136 | -10/Materials | Learned 4 Subcaves zone layouts 1159 | -10/Materials | Learned location of 2 exits from Mines 1176 | -10/Materials | Identified exit to Subcaves 1190 | -10/Materials | Learned location of 1 exit from Storage 1212 | -10/Materials | Identified exit to Materials 1420 | -10/Materials | Entered Mines 1456 | -10/Mines | Met a Derelict bent on vengeance 1504 | -10/Mines | Received a Rocket Launcher from a helpful Derelict 1623 | -10/Mines | Deemed a non-threat by the Exiles lab entrance 1623 | -10/Mines | Discovered new exit (range 5) 1816 | -10/Mines | Assembled infested the area 1937 | -10/Mines | Entered Exiles 1982 | -10/Exiles | Met 8R-AWN 2005 | -10/Exiles | Met EX-HEX 2046 | -10/Exiles | Met EX-BIN 2063 | -10/Exiles | Aligned with FarCom system 2065 | -10/Exiles | Given EX-Vault access code 2096 | -10/Exiles | Opened EX-Vault 2109 | -10/Exiles | Found Field Lobotomy Kit 2111 | -10/Exiles | Found Latent Energy Streamer 2115 | -10/Exiles | Found Trap Reconfigurator 2141 | -10/Exiles | Warned to stay clear of 0b10 Research branches 2180 | -10/Exiles | Met EX-DEC 2188 | -10/Exiles | Learned location of Zion (-6) 2209 | -10/Exiles | Attacked by the Exiles 2374 | -10/Exiles | Core integrity fell below 50% 2389 | -10/Exiles | Lost 4 parts (1n1u2w) 2459 | -10/Exiles | Core integrity fell below 20% 2467 | -10/Exiles | Destroyed self with Rocket Launcher Last Messages --------------- 02424_ Backup Plating I destroyed. 02424_ Penetrated by HV Slug. 02428_ Critical hit (Destroy). 02428_ HV Slug penetrates Wall. 02428_ HV Slug penetrates Earth. 02432_ Penetrated by HV Slug. 02432_ Critical hit (Destroy). 02437_ The unstable cave ceiling collapses. 02437_ Penetrated by HV Slug. 02437_ Backup Plating I destroyed. 02440_ 8R-AWN suffers critical hit (Destroy). 02441_ Penetrated by HV Slug. 02441_ Critical hit (Destroy). 02441_ Imp. Assault Rifle destroyed. 02441_ Penetrated by HV Slug. 02450_ Imp. EM Shotgun destroyed. 02454_ Penetrated by HV Slug. 02462_ HV Slug penetrates Wall. 02462_ HV Slug penetrates Earth. 02466_ Penetrated by HV Slug. Map ----- +----------------------------------------------------+ | ?????????????????????????????????????????????????? | | ?????????????????????????????????????????????????? | | ?????????????????????????????????????????????????? | | ?????????????????????????????????????????????????? | | ?????????????????????????????????????????????????? | | ?????????????????????????????????????????????????? | | ?????????????????????????????????????????????????? | | ?????????????????????????????????????????????????? | | ?????????????????????????????????????????????????? | | ?????????????????????????????????????????????????? | | ???????????????????????????????######????????????? | | ????????????????? ######???????#!!! "#???????????? | | ????????????????? #""#??????# "????????????? | | ????????????????? ??????# "#???????????? | | ????????????????? #????## ""#???????????? | | ????????????????? #####" ""#???????????? | | ?????????????????? ##" ""????????????? | | ??????????????????? # " ##???????????? | | ????????????????????? #??????????" | | ???????????????????????# ??????????" | | ????????????????????????# ?????????? | | ?????????????????########" #?????????? | | ?????????????????# !! ?????????? | | ??????????????# #! g #####???## | | ????????????????#;! """#####X | | ??????????????# ;! @ " | | ???????????# ; #"; | | ?????????????# ##;;;;;#;########## * | | ??????????????????# # #????????### | | ?????????????????# # ?# #??????????### | | ????????????????# #?#??###????????????## | | ??????????????? ??????????????????????## | | ?????????????# #????????????????????????##" | | ????????????? ???????????????????????????#""" | | ?????????????#????????????????????????????#" | | ??????????????????????????????????????????"" | | ??????????????????????????????????????????""" | | ??????????????????????????????????????????"" | | ???????????????????????????????????????????" | | ??????????????????????????????????????????" | | ??????????????????????????????????????????"" | | ??????????????????????????????????????????? | | ???????????????????????????????????????????? | | ?????????????????????????????????????????????? | | ???????????????????????????????????????????????? | | ?????????????????????????????????????????????????? | | ?????????????????????????????????????????????????? | | ?????????????????????????????????????????????????? | | ?????????????????????????????????????????????????? | | ?????????????????????????????????????????????????? | +----------------------------------------------------+ Best States ------------- Heat Dissipation 25 Energy Generation 10 Energy Capacity 250 Matter Stores 300 Matter Capacity 300 Sight Range 16 Terrain Scan Density 10 Armor Coverage 80 Evasion (%) 40 Recoil Reduction 2 Item Schematics ----------------- None Robot Schematics ------------------ M-13 Machinist | -10/Materials | Hacked Fabricated ------------ Nothing Repaired ---------- Nothing Studied --------- None Alien Tech Used ----------------- None Achievements -------------- None Challenges ------------ None Game ------ Seed ImprovedProtonTurbovents Manual? 0 Play Time 00:15:17 Cumulative 1030.0 hours Start 2026.08.23 @ 23:04:19 End 2026.08.23 @ 23:20:27 Sessions 1 Manual Loads 0 Difficulty Rogue Special Mode None Game No. 291 Rogue 291 Adventurer 0 Explorer 0 Win Type - Total 46 Types 13/10/11/2/2/0/4/1/1/2 Lore% 96 Gallery% 91 Achievement% 87 Wizard Run 0 Options --------- Layout 1 ASCII 0 Keyboard 0 Movement Mouse Keybinds 0 Fullscreen 2 Font 32/SmallcapsGlow Map View 50x35 Zoom Use 0% Tactical HUD 1 Map Filters NONE Filters NONE Steam 1 RUN: 4c0f86af-4e63-4292-99e2-f61c73d6172f